[Event "XLIV Barbera del Valles-A 2022"]
[Site "Barbera del Valles"]
[Date "2022.07.12"]
[Round "9.4"]
[White "Dahale, Atul"]
[Black "Moskalenko, Viktor"]
[Result "1/2-1/2"]
[ECO "D94"]
[WhiteElo "2162"]
[BlackElo "2457"]
[Annotator "ChessBase"]
[PlyCount "106"]
[EventDate "2022.07.04"]
[EventType "swiss"]
[EventCountry "ESP"]
[SourceTitle "playchess.com"]
[Source "ChessBase"]
[SourceQuality "1"]
[TimeControl "5400+30"]

1. d4 {[%emt 0:00:11]} Nf6 {[%emt 0:01:20]} 2. c4 {[%emt 0:00:35]} c5 {[%emt 0:00:39]} 3. e3 {[%emt 0:01:57]} g6 {[%emt 0:03:27]} 4. Nc3 {[%emt 1:29:47]} Bg7 {[%emt 0:00:18]} 5. Nf3 {[%emt 0:00:00]} O-O {[%emt 0:01:15]} 6. Be2 {[%emt 0:00:00]} cxd4 {[%emt 0:05:02]} 7. exd4 {[%emt 0:00:00]} d5 {[%emt 0:00:28]} 8. h3 {[%emt 0:00:00]} Nc6 {[%emt 0:01:56]} 9. O-O {[%emt 0:00:00]} b6 {[%emt 0:06:30]} 10. Be3 {[%emt 0:00:00]} Bb7 {[%emt 0:00:39]} 11. Rc1 {[%emt 0:00:00]} dxc4 {[%emt 0:17:36]} 12. Bxc4 {[%emt 0:00:00]} Na5 {[%emt 0:04:44]} 13. Bd3 {[%emt 0:00:00]} Nd5 {[%emt 0:02:03]} 14. Qe2 {[%emt 0:00:00]} Nb4 {[%emt 0:12:59]} 15. Bb1 {[%emt 0:00:00]} Rc8 {[%emt 0:07:18]} 16. a3 {[%emt 0:00:00]} Nd5 {[%emt 0:06:17]} 17. Nxd5 {[%emt 0:00:00]} Bxd5 {[%emt 0:03:49]} 18. Ne5 {[%emt 0:00:00]} Rxc1 {[%emt 0:09:05]} 19. Rxc1 {[%emt 0:00:00]} Qa8 {[%emt 0:00:07]} 20. f3 {[%emt 0:00:00]} Rc8 {[%emt 0:00:16]} 21. Rd1 {[%emt 0:00:00]} Nc4 {[%emt 0:02:49]} 22. Bf4 {[%emt 0:00:00]} Nxe5 {[%emt 0:01:54]} 23. dxe5 {[%emt 0:00:00]} e6 {[%emt 0:00:57]} 24. Bg5 {[%emt 0:00:00]} Qb8 {[%emt 0:01:07]} 25. f4 {[%emt 0:00:00]} Qc7 {[%emt 0:02:45]} 26. Bd3 {[%emt 0:01:15]} Qc5+ {[%emt 0:00:54]} 27. Qf2 {[%emt 0:00:36]} h6 {[%emt 0:03:17]} 28. Qxc5 {[%emt 0:00:41]} Rxc5 {[%emt 0:00:28]} 29. Be7 {[%emt 0:00:06]} Rc7 {[%emt 0:01:02]} 30. Bd6 {[%emt 0:00:08]} Rc8 {[%emt 0:00:12]} 31. Kf2 {[%emt 0:00:42]} Bf8 {[%emt 0:00:05]} 32. Bxf8 {[%emt 0:00:22]} Kxf8 {[%emt 0:00:03]} 33. g4 {[%emt 0:00:08]} Rc5 {[%emt 0:01:14]} 34. h4 {[%emt 0:02:17]} Bb3 {[%emt 0:00:58]} 35. Re1 {[%emt 0:00:08]} Ke7 {[%emt 0:00:30]} 36. Re3 {[%emt 0:03:57]} Bd1 {[%emt 0:00:52]} 37. g5 {[%emt 0:00:44]} h5 {[%emt 0:00:34]} 38. Re1 {[%emt 0:00:36]} Bc2 {[%emt 0:00:50]} 39. Ke3 {[%emt 0:02:16]} Bxd3 {[%emt 0:00:19]} 40. Kxd3 {[%emt 0:00:02]} Kd7 {[%emt 0:00:13]} 41. b4 {[%emt 0:00:55]} Rd5+ {[%emt 0:00:40]} 42. Ke3 {[%emt 0:00:10]} Kc6 {[%emt 0:01:30]} 43. Rc1+ {[%emt 0:00:16]} Kb7 {[%emt 0:00:02]} 44. a4 {[%emt 0:01:12]} a6 {[%emt 0:00:27]} 45. Rc4 {[%emt 0:02:52]} Rd1 {[%emt 0:00:33]} 46. Rd4 {[%emt 0:00:06]} Rb1 {[%emt 0:01:27]} 47. Rd7+ {[%emt 0:00:14]} Kc6 {[%emt 0:00:06]} 48. Rxf7 {[%emt 0:00:39]} Rb3+ {[%emt 0:00:29]} 49. Kd2 {[%emt 0:01:04]} Rxb4 {[%emt 0:00:08]} 50. Ke3 {[%emt 0:00:42]} Rb3+ {[%emt 0:01:27]} 51. Ke4 {[%emt 0:00:05]} Rb4+ {[%emt 0:00:08]} 52. Ke3 {[%emt 0:00:05]} Rb3+ {[%emt 0:01:25]} 53. Ke4 {[%emt 0:00:05]} Rb4+ {[%emt 0:00:07]} 1/2-1/2

[Event "XLIV Barbera del Valles-A 2022"]
[Site "Barbera del Valles"]
[Date "2022.07.12"]
[Round "9.5"]
[White "Alsina Leal, Daniel"]
[Black "Vergara Jofre, Felipe"]
[Result "1/2-1/2"]
[ECO "D37"]
[WhiteElo "2525"]
[BlackElo "2151"]
[Annotator "ChessBase"]
[PlyCount "113"]
[EventDate "2022.07.04"]
[EventType "swiss"]
[EventCountry "ESP"]
[SourceTitle "playchess.com"]
[Source "ChessBase"]
[SourceQuality "1"]
[TimeControl "5400+30"]

1. c4 {[%emt 1:31:00]} e6 {[%emt 0:05:23]} 2. Nc3 {[%emt 0:00:00]} d5 {[%emt 0:00:05]} 3. d4 {[%emt 0:00:00]} a6 {[%emt 0:00:03]} 4. cxd5 {[%emt 0:00:00]} exd5 {[%emt 0:00:02]} 5. Nf3 {[%emt 0:00:00]} Nf6 {[%emt 0:03:22]} 6. Bg5 {[%emt 0:00:00]} c6 {[%emt 0:04:19]} 7. e3 {[%emt 0:00:00]} Be6 {[%emt 0:00:13]} 8. Bd3 {[%emt 0:00:00]} Nbd7 {[%emt 0:03:40]} 9. O-O {[%emt 0:00:00]} Bd6 {[%emt 0:04:36]} 10. Re1 {[%emt 0:00:00]} O-O {[%emt 0:16:55]} 11. e4 {[%emt 0:00:00]} dxe4 {[%emt 0:01:20]} 12. Nxe4 {[%emt 0:00:00]} Be7 {[%emt 0:01:17]} 13. Ng3 {[%emt 0:06:00]} Re8 {[%emt 0:26:17]} 14. a3 {[%emt 0:00:00]} Nd5 {[%emt 0:05:03]} 15. Bd2 {[%emt 0:00:00]} Nf8 {[%emt 0:05:58]} 16. Ne5 {[%emt 0:00:00]} Bg5 {[%emt 0:00:48]} 17. Bxg5 {[%emt 0:00:00]} Qxg5 {[%emt 0:00:01]} 18. Ne4 {[%emt 0:00:00]} Qe7 {[%emt 0:01:30]} 19. Qf3 {[%emt 0:00:00]} Nc7 {[%emt 0:05:16]} 20. Qg3 {[%emt 0:00:00]} Rad8 {[%emt 0:03:21]} 21. Nf3 {[%emt 0:00:00]} Nb5 {[%emt 0:01:30]} 22. Bxb5 {[%emt 0:00:00]} axb5 {[%emt 0:01:06]} 23. Nc5 {[%emt 0:00:00]} b6 {[%emt 0:01:13]} 24. Nxe6 {[%emt 0:00:00]} Nxe6 {[%emt 0:00:18]} 25. Rac1 {[%emt 0:00:00]} Qd6 {[%emt 0:02:55]} 26. Qxd6 {[%emt 0:01:52]} Rxd6 {[%emt 0:00:01]} 27. g3 {[%emt 0:00:40]} Red8 {[%emt 0:04:27]} 28. b4 {[%emt 0:00:09]} g6 {[%emt 0:00:31]} 29. Kg2 {[%emt 0:01:18]} Kg7 {[%emt 0:02:26]} 30. Re3 {[%emt 0:00:12]} h5 {[%emt 0:00:34]} 31. h4 {[%emt 0:01:10]} Ra8 {[%emt 0:00:46]} 32. Rcc3 {[%emt 0:01:52]} Nc7 {[%emt 0:00:27]} 33. Rc1 {[%emt 0:00:32]} Ne6 {[%emt 0:00:02]} 34. Rc2 {[%emt 0:01:15]} Ra7 {[%emt 0:01:05]} 35. Kf1 {[%emt 0:01:01]} Ra8 {[%emt 0:00:34]} 36. Rc1 {[%emt 0:00:12]} Ra7 {[%emt 0:00:03]} 37. Ke2 {[%emt 0:00:48]} Kf8 {[%emt 0:00:39]} 38. Rd3 {[%emt 0:00:35]} Ra8 {[%emt 0:00:49]} 39. Ke3 {[%emt 0:00:20]} Re8 {[%emt 0:00:30]} 40. Kd2 {[%emt 0:00:24]} Red8 {[%emt 0:00:07]} 41. Ke2 {[%emt 0:00:26]} c5 {[%emt 0:00:39]} 42. bxc5 {[%emt 0:00:54]} bxc5 {[%emt 0:00:20]} 43. Rb3 {[%emt 0:00:20]} Rxd4 {[%emt 0:00:36]} 44. Rxb5 {[%emt 0:00:21]} Re4+ {[%emt 0:00:24]} 45. Kf1 {[%emt 0:00:09]} Rd3 {[%emt 0:00:43]} 46. Ng5 {[%emt 0:01:23]} Nxg5 {[%emt 0:00:11]} 47. hxg5 {[%emt 0:00:05]} Re5 {[%emt 0:00:42]} 48. Rbxc5 {[%emt 0:01:00]} Rxc5 {[%emt 0:00:05]} 49. Rxc5 {[%emt 0:00:04]} Rxa3 {[%emt 0:00:05]} 50. Kg2 {[%emt 0:00:21]} Ke7 {[%emt 0:00:29]} 51. f4 {[%emt 0:00:43]} Ra2+ {[%emt 0:01:21]} 52. Kh3 {[%emt 0:00:17]} Ra4 {[%emt 0:00:26]} 53. Rc6 {[%emt 0:00:45]} Kf8 {[%emt 0:00:31]} 54. Rb6 {[%emt 0:00:41]} Kg7 {[%emt 0:00:07]} 55. Rf6 {[%emt 0:00:20]} Ra5 {[%emt 0:00:41]} 56. Rb6 {[%emt 0:00:41]} Ra2 {[%emt 0:00:59]} 57. Rb5 {[%emt 0:00:25]} 1/2-1/2

[Event "XLIV Barbera del Valles-A 2022"]
[Site "Barbera del Valles"]
[Date "2022.07.12"]
[Round "9.6"]
[White "Asis Gargatagli, Hipolito"]
[Black "Vehi Bach, Victor Manuel"]
[Result "1-0"]
[ECO "B01"]
[WhiteElo "2514"]
[BlackElo "2290"]
[Annotator "ChessBase"]
[PlyCount "69"]
[EventDate "2022.07.04"]
[EventType "swiss"]
[EventCountry "ESP"]
[SourceTitle "playchess.com"]
[Source "ChessBase"]
[SourceQuality "1"]
[TimeControl "5400+30"]

1. e4 {[%emt 0:57:18]} d5 {[%emt 1:07:33]} 2. exd5 {[%emt 0:00:30]} Qxd5 {[%emt 0:00:30]} 3. Nc3 {[%emt 0:00:30]} Qd8 {[%emt 0:00:30]} 4. d4 {[%emt 0:00:30]} Nf6 {[%emt 0:00:30]} 5. Nf3 {[%emt 0:00:30]} g6 {[%emt 0:00:30]} 6. Bc4 {[%emt 0:00:30]} Bg7 {[%emt 0:00:30]} 7. Qe2 {[%emt 0:00:30]} O-O {[%emt 0:00:30]} 8. Bg5 {[%emt 0:00:30]} c6 {[%emt 0:00:30]} 9. h3 {[%emt 0:00:30]} Nbd7 {[%emt 0:00:30]} 10. O-O {[%emt 0:00:30]} Nb6 {[%emt 0:00:30]} 11. Bb3 {[%emt 0:00:30]} h6 {[%emt 0:00:30]} 12. Bd2 {[%emt 0:00:30]} a5 {[%emt 0:00:30]} 13. a3 {[%emt 0:00:30]} a4 {[%emt 0:00:30]} 14. Ba2 {[%emt 0:00:30]} Bf5 {[%emt 0:00:30]} 15. Rac1 {[%emt 0:00:30]} Nbd5 {[%emt 0:00:30]} 16. Nxd5 {[%emt 0:00:30]} cxd5 {[%emt 0:00:30]} 17. Bb4 {[%emt 0:00:30]} Re8 {[%emt 0:00:30]} 18. Ne5 {[%emt 0:00:30]} Ra6 {[%emt 0:00:30]} 19. g4 {[%emt 0:00:30]} Bc8 {[%emt 0:00:30]} 20. c3 {[%emt 0:00:30]} Nd7 {[%emt 0:00:30]} 21. f4 {[%emt 0:00:30]} Nxe5 {[%emt 0:00:30]} 22. fxe5 {[%emt 0:00:30]} Be6 {[%emt 0:00:30]} 23. Qd3 {[%emt 0:00:30]} Qd7 {[%emt 0:00:30]} 24. Kh2 {[%emt 0:00:30]} Rf8 {[%emt 0:00:30]} 25. Bb1 {[%emt 0:00:30]} h5 {[%emt 0:00:30]} 26. gxh5 {[%emt 0:00:30]} Bf5 {[%emt 0:00:30]} 27. Qf3 {[%emt 0:00:30]} Bxb1 {[%emt 0:00:30]} 28. Rxb1 {[%emt 0:00:30]} gxh5 {[%emt 0:00:30]} 29. Qxh5 {[%emt 0:00:30]} Rg6 {[%emt 0:00:30]} 30. Rf4 {[%emt 0:00:30]} Bh6 {[%emt 0:00:30]} 31. Rg4 {[%emt 0:00:30]} Kh7 {[%emt 0:00:30]} 32. Rf1 {[%emt 0:00:30]} Qe6 {[%emt 0:00:30]} 33. Qf5 {[%emt 0:00:30]} Qxf5 {[%emt 0:00:30]} 34. Rxf5 {[%emt 0:00:30]} Re6 {[%emt 0:00:30]} 35. c4 {[%emt 0:00:30]} 1-0

[Event "XLIV Barbera del Valles-A 2022"]
[Site "Barbera del Valles"]
[Date "2022.07.12"]
[Round "9.7"]
[White "Pimpalkhare Vedant"]
[Black "Barros, Raul Junior"]
[Result "1/2-1/2"]
[ECO "E17"]
[WhiteElo "2057"]
[BlackElo "2174"]
[Annotator "ChessBase"]
[PlyCount "62"]
[EventDate "2022.07.04"]
[EventType "swiss"]
[EventCountry "ESP"]
[SourceTitle "playchess.com"]
[Source "ChessBase"]
[SourceQuality "1"]
[TimeControl "5400+30"]

1. d4 {[%emt 0:00:03]} Nf6 {[%emt 0:00:53]} 2. Nf3 {[%emt 0:00:08]} b6 {[%emt 0:00:13]} 3. g3 {[%emt 0:00:10]} e6 {[%emt 0:00:23]} 4. Bg2 {[%emt 0:00:07]} Bb7 {[%emt 0:00:10]} 5. O-O {[%emt 0:00:07]} Be7 {[%emt 0:00:19]} 6. c4 {[%emt 0:00:07]} O-O {[%emt 0:00:13]} 7. d5 {[%emt 0:00:10]} exd5 {[%emt 0:06:21]} 8. Nh4 {[%emt 0:00:04]} Ne4 {[%emt 0:10:08]} 9. cxd5 {[%emt 0:00:05]} Bxh4 {[%emt 0:00:27]} 10. Bxe4 {[%emt 0:00:06]} Bf6 {[%emt 0:00:21]} 11. Nc3 {[%emt 0:02:26]} d6 {[%emt 0:00:28]} 12. Qc2 {[%emt 0:06:34]} g6 {[%emt 0:04:19]} 13. Bg2 {[%emt 0:00:27]} Nd7 {[%emt 0:04:22]} 14. Bh6 {[%emt 0:06:39]} Re8 {[%emt 0:05:46]} 15. Rac1 {[%emt 0:00:45]} a5 {[%emt 0:13:32]} 16. a3 {[%emt 0:02:51]} Ba6 {[%emt 0:06:11]} 17. b4 {[%emt 0:06:46]} axb4 {[%emt 0:01:39]} 18. axb4 {[%emt 0:00:41]} Bc4 {[%emt 0:01:51]} 19. b5 {[%emt 0:16:14]} Nc5 {[%emt 0:02:35]} 20. Rb1 {[%emt 0:03:04]} Ra3 {[%emt 0:04:41]} 21. Bd2 {[%emt 0:11:19]} Bxe2 {[%emt 0:08:11]} 22. Nxe2 {[%emt 0:01:24]} Rxe2 {[%emt 0:00:06]} 23. Rbe1 {[%emt 0:05:06]} Qe8 {[%emt 0:04:52]} 24. Qc4 {[%emt 0:02:05]} Rxe1 {[%emt 0:06:40]} 25. Rxe1 {[%emt 0:00:22]} Ra1 {[%emt 0:00:27]} 26. Rxa1 {[%emt 0:00:15]} Bxa1 {[%emt 0:00:02]} 27. Bf3 {[%emt 0:04:10]} Qe5 {[%emt 0:04:44]} 28. Be3 {[%emt 0:01:01]} Qf5 {[%emt 0:02:55]} 29. Kg2 {[%emt 0:01:02]} Bf6 {[%emt 0:03:05]} 30. h4 {[%emt 0:03:46]} Qd3 {[%emt 0:00:54]} 31. Qg4 {[%emt 0:01:41]} Qxb5 {[%emt 0:09:12]} 1/2-1/2

[Event "XLIV Barbera del Valles-A 2022"]
[Site "Barbera del Valles"]
[Date "2022.07.12"]
[Round "9.8"]
[White "Sanchez, Sebastian Felipe"]
[Black "Comellas Blanchart, Jordi"]
[Result "1-0"]
[ECO "A64"]
[WhiteElo "2440"]
[BlackElo "1945"]
[Annotator "ChessBase"]
[PlyCount "57"]
[EventDate "2022.07.04"]
[EventType "swiss"]
[EventCountry "ESP"]
[SourceTitle "playchess.com"]
[Source "ChessBase"]
[SourceQuality "1"]
[TimeControl "5400+30"]

1. d4 {[%emt 0:00:43]} Nf6 {[%emt 0:00:09]} 2. c4 {[%emt 0:00:05]} g6 {[%emt 0:00:07]} 3. g3 {[%emt 0:00:05]} Bg7 {[%emt 0:00:11]} 4. Bg2 {[%emt 0:00:05]} O-O {[%emt 0:00:10]} 5. Nf3 {[%emt 0:00:04]} c5 {[%emt 0:00:24]} 6. d5 {[%emt 0:00:26]} d6 {[%emt 0:00:14]} 7. Nc3 {[%emt 0:00:11]} e6 {[%emt 0:00:44]} 8. O-O {[%emt 0:00:08]} Re8 {[%emt 0:00:31]} 9. Nd2 {[%emt 0:03:34]} exd5 {[%emt 0:02:55]} 10. cxd5 {[%emt 0:00:05]} a6 {[%emt 0:01:53]} 11. a4 {[%emt 0:00:05]} Nbd7 {[%emt 0:00:19]} 12. h3 {[%emt 0:00:17]} Qc7 {[%emt 0:05:46]} 13. Nc4 {[%emt 0:06:53]} Ne5 {[%emt 0:01:27]} 14. Na3 {[%emt 0:09:02]} Rb8 {[%emt 0:06:05]} 15. f4 {[%emt 0:03:05]} Ned7 {[%emt 0:00:54]} 16. e4 {[%emt 0:00:12]} c4 {[%emt 0:04:46]} 17. Be3 {[%emt 1:14:00]} Nc5 {[%emt 0:18:47]} 18. e5 {[%emt 0:00:00]} dxe5 {[%emt 0:06:01]} 19. d6 {[%emt 0:00:00]} Qb6 {[%emt 0:03:43]} 20. fxe5 {[%emt 0:00:00]} Nfd7 {[%emt 0:05:39]} 21. Nxc4 {[%emt 0:00:00]} Qb4 {[%emt 0:01:29]} 22. Qd5 {[%emt 0:00:00]} Nxe5 {[%emt 0:01:33]} 23. Nxe5 {[%emt 0:00:00]} Rxe5 {[%emt 0:00:10]} 24. Qxf7+ {[%emt 0:00:00]} Kh8 {[%emt 0:00:06]} 25. Qc7 {[%emt 0:00:00]} Bd7 {[%emt 0:05:17]} 26. Qxb8+ {[%emt 0:00:00]} Re8 {[%emt 0:00:09]} 27. Nd5 {[%emt 0:00:00]} Qb3 {[%emt 0:03:00]} 28. Qc7 {[%emt 0:00:00]} Rxe3 {[%emt 0:00:26]} 29. Ra3 {[%emt 0:00:00]} 1-0

[Event "XLIV Barbera del Valles-A 2022"]
[Site "Barbera del Valles"]
[Date "2022.07.12"]
[Round "9.9"]
[White "Del Amo Carbo, Jordi"]
[Black "Munoz, Miguel"]
[Result "0-1"]
[ECO "A70"]
[WhiteElo "2148"]
[BlackElo "2408"]
[Annotator "ChessBase"]
[PlyCount "62"]
[EventDate "2022.07.04"]
[EventType "swiss"]
[EventCountry "ESP"]
[SourceTitle "playchess.com"]
[Source "ChessBase"]
[SourceQuality "1"]
[TimeControl "5400+30"]

1. d4 {[%emt 1:31:00]} Nf6 {[%emt 1:31:00]} 2. c4 {[%emt 0:00:30]} c5 {[%emt 0:00:30]} 3. d5 {[%emt 0:00:30]} e6 {[%emt 0:00:30]} 4. Nc3 {[%emt 0:00:30]} exd5 {[%emt 0:00:30]} 5. cxd5 {[%emt 0:00:30]} d6 {[%emt 0:00:30]} 6. e4 {[%emt 0:00:30]} g6 {[%emt 0:00:30]} 7. h3 {[%emt 0:00:30]} Bg7 {[%emt 0:00:30]} 8. Nf3 {[%emt 0:00:30]} O-O {[%emt 0:00:30]} 9. Bd3 {[%emt 0:00:30]} b5 {[%emt 0:00:30]} 10. O-O {[%emt 0:00:30]} b4 {[%emt 0:00:30]} 11. Nb1 {[%emt 0:00:30]} c4 {[%emt 0:00:30]} 12. Bxc4 {[%emt 0:00:30]} Nxe4 {[%emt 0:00:30]} 13. Nbd2 {[%emt 0:00:30]} Nc5 {[%emt 0:00:30]} 14. Nb3 {[%emt 0:00:30]} Nbd7 {[%emt 0:00:30]} 15. Nbd4 {[%emt 0:00:30]} Nb6 {[%emt 0:00:30]} 16. Bb5 {[%emt 0:00:30]} Bd7 {[%emt 0:00:30]} 17. Bc6 {[%emt 0:00:30]} Bxc6 {[%emt 0:00:30]} 18. Nxc6 {[%emt 0:00:30]} Qd7 {[%emt 0:00:30]} 19. Be3 {[%emt 0:00:30]} Rfe8 {[%emt 0:00:30]} 20. Bd4 {[%emt 0:00:30]} Nxd5 {[%emt 0:00:30]} 21. Bxg7 {[%emt 0:00:30]} Qxc6 {[%emt 0:00:30]} 22. Bh6 {[%emt 0:00:30]} Re4 {[%emt 0:00:30]} 23. Rc1 {[%emt 0:00:30]} Rae8 {[%emt 0:00:30]} 24. Qd2 {[%emt 0:00:30]} Ne7 {[%emt 0:00:30]} 25. Rfd1 {[%emt 0:00:30]} Nf5 {[%emt 0:00:30]} 26. Bg5 {[%emt 0:00:30]} a5 {[%emt 0:00:30]} 27. Rc2 {[%emt 0:00:30]} Qb7 {[%emt 0:00:30]} 28. b3 {[%emt 0:00:30]} R4e6 {[%emt 0:00:30]} 29. Bf4 {[%emt 0:00:30]} Ne4 {[%emt 0:00:30]} 30. Qd5 {[%emt 0:00:30]} Qxd5 {[%emt 0:00:30]} 31. Rxd5 {[%emt 0:00:30]} Nc3 {[%emt 0:00:30]} 0-1

[Event "XLIV Barbera del Valles-A 2022"]
[Site "Barbera del Valles"]
[Date "2022.07.12"]
[Round "9.10"]
[White "Ortiz Verdezoto, Anahi"]
[Black "Perez Bolanos, Joel"]
[Result "1-0"]
[ECO "E41"]
[WhiteElo "2046"]
[BlackElo "2036"]
[Annotator "ChessBase"]
[PlyCount "75"]
[EventDate "2022.07.04"]
[EventType "swiss"]
[EventCountry "ESP"]
[SourceTitle "playchess.com"]
[Source "ChessBase"]
[SourceQuality "1"]
[TimeControl "5400+30"]

1. d4 {[%emt 1:31:00]} Nf6 {[%emt 0:02:51]} 2. c4 {[%emt 0:00:00]} e6 {[%emt 0:00:04]} 3. Nc3 {[%emt 0:00:00]} Bb4 {[%emt 0:00:45]} 4. e3 {[%emt 0:00:00]} c5 {[%emt 0:00:07]} 5. Bd3 {[%emt 0:00:00]} Nc6 {[%emt 0:00:06]} 6. Nf3 {[%emt 0:00:00]} Bxc3+ {[%emt 0:00:10]} 7. bxc3 {[%emt 0:00:00]} d6 {[%emt 0:00:04]} 8. e4 {[%emt 0:00:00]} e5 {[%emt 0:00:18]} 9. d5 {[%emt 0:00:00]} Ne7 {[%emt 0:00:05]} 10. O-O {[%emt 0:00:00]} h6 {[%emt 0:00:18]} 11. Nh4 {[%emt 0:00:00]} O-O {[%emt 0:01:16]} 12. f4 {[%emt 0:00:00]} Ng6 {[%emt 0:01:39]} 13. Nxg6 {[%emt 0:00:00]} fxg6 {[%emt 0:00:14]} 14. Qe1 {[%emt 0:00:00]} Qe8 {[%emt 0:03:12]} 15. fxe5 {[%emt 0:00:00]} dxe5 {[%emt 0:00:07]} 16. a4 {[%emt 0:00:00]} a5 {[%emt 0:01:28]} 17. Rb1 {[%emt 0:00:00]} Rb8 {[%emt 0:02:25]} 18. Be3 {[%emt 0:00:00]} b6 {[%emt 0:00:34]} 19. Bxc5 {[%emt 0:00:00]} Rf7 {[%emt 0:00:58]} 20. Bxb6 {[%emt 0:00:00]} Qxa4 {[%emt 0:00:55]} 21. c5 {[%emt 0:00:00]} g5 {[%emt 0:03:36]} 22. Ra1 {[%emt 0:00:00]} Qe8 {[%emt 0:01:30]} 23. Rxa5 {[%emt 0:00:00]} Nh5 {[%emt 0:01:46]} 24. Bb5 {[%emt 0:00:00]} Rxf1+ {[%emt 0:00:59]} 25. Qxf1 {[%emt 0:00:00]} Qg6 {[%emt 0:01:30]} 26. d6 {[%emt 0:00:00]} Rxb6 {[%emt 0:05:43]} 27. cxb6 {[%emt 0:00:00]} Qxd6 {[%emt 0:00:58]} 28. Ra8 {[%emt 0:00:00]} Qxb6+ {[%emt 0:00:22]} 29. Kh1 {[%emt 0:00:00]} Qb7 {[%emt 0:00:26]} 30. Qc4+ {[%emt 0:00:00]} Kh7 {[%emt 0:00:07]} 31. Rxc8 {[%emt 0:00:00]} Nf6 {[%emt 0:00:10]} 32. Rc7 {[%emt 0:00:00]} Qa8 {[%emt 0:00:56]} 33. Qf1 {[%emt 0:00:00]} Kh8 {[%emt 0:03:02]} 34. Bd7 {[%emt 0:00:00]} Qa5 {[%emt 0:01:18]} 35. Rc8+ {[%emt 0:00:00]} Kh7 {[%emt 0:00:05]} 36. Bb5 {[%emt 0:00:00]} Qa3 {[%emt 0:03:19]} 37. Qf5+ {[%emt 0:00:00]} g6 {[%emt 0:00:03]} 38. Rc7+ {[%emt 0:00:00]} 1-0